Workbook

Sheet Instructions
A1: Preparing a Loaded Budget for Industry - Use this when the sponsor expects to see a quote. Some sponsors may expect to see a fully detailed budget, especially if they have indicated a reduced IDC in the RFP. In those cases, use the standard BOB.
A2: 1) In the TUITION TAB, ensure the tuition matrix is properly completed. If no students are expected for a particular semester or year, leave the square blank. If any students are expected for a particular semester and year, enter the number of students to have tuition charged in the matrix.
A3: 2) In the INTERNAL BUDGET TAB, for Key Personnel, enter the monthly salary and needed months of salary under Academic or Summer months only. Do not enter anything in Calendar Months. Enter the salary needs for Year 1. If this is a one-year project, zero out the remaining months.
A4: 3) In the INTERNAL BUDGET TAB, for Other Personnel, enter the monthly salary and Calendar Months. Enter the salary needs for Year 1. If this is a one-year project, zero out the remaining months.
A5: 4) In the INTERNAL BUDGET TAB, Fringe Benefits will auto-populate based on the Key and Other Personnel. Enter the budgeted totals for Equipment, Travel, and Other Direct Costs. Indirect Costs and Total Project Costs should auto-populate.
A6: 5) In the INTERNAL BUDGET TAB, if you need to change the Indirect Cost Rate, enter the revised rate. Be sure to update the revised rate to Total Direct Costs as needed by modifying the formula in H82 (the most likely change is from =+H78*$D$82 to =+H76*$D$82).
A7: 6) In the EXTERNAL BUDGET TAB, zero out any remaining salary for Year 2 through 5. Review to ensure Total Project Costs match from INTERNAL BUDGET TAB. If they do not, review budget to find where the discrepancies are occurring. The most likely error is in the months applied to the salaries.
A8: 7) The INDUSTRY BUDGET USE THIS tab is the budget format you will send to the sponsor.

Sheet Internal budget
A1: Project Budget Worksheet - Iowa State University of Science and Technology | M1: Eff. 2/9/2017
A2: Loaded Budget for Industry Proposals | M2: Updated 2/17/2017
A3: Program Sponsor | D3: XYZ Company | G3: FOR INTERNAL USE ONLY
A4: Title | D4: The best proposal ever
A5: PI | D5: Professor Smith | G5: To use this form, enter budget numbers into "Internal Budget" and the fringe rates and F&A rate will calculated into each line item of the "External Budget" which should be sent as PDF to Sponsor.
A6: Period of Performance | D6: 1/1/2017 to 12/31/2017
A7: Deadline
H9: Year 1 | I9: Year 2 | J9: Year 3 | K9: Year 4 | L9: Year 5 | M9: Total
G10: Select FY | H10: FY17 | I10: =IF(H10=F97,F98,IF(H10=F98,F99,IF(H10=F99,F100,IF(H10=F100,F101,IF(H10=F101,F102,IF(H10=F102,F103,IF(H10=F103,F104,IF(H10=F104,F105,IF(H10=F105,F106))))))))) -> FY18 | J10: =IF(I10=F97,F98,IF(I10=F98,F99,IF(I10=F99,F100,IF(I10=F100,F101,IF(I10=F101,F102,IF(I10=F102,F103,IF(I10=F103,F104,IF(I10=F104,F105,IF(I10=F105,F106))))))))) -> FY19 | K10: =IF(J10=F97,F98,IF(J10=F98,F99,IF(J10=F99,F100,IF(J10=F100,F101,IF(J10=F101,F102,IF(J10=F102,F103,IF(J10=F103,F104,IF(J10=F104,F105,IF(J10=F105,F106))))))))) -> FY20 | L10: =IF(IK10=F97,F98,IF(K10=F98,F99,IF(K10=F99,F100,IF(K10=F100,F101,IF(K10=F101,F102,IF(K10=F102,F103,IF(K10=F103,F104,IF(K10=F104,F105,IF(K10=F105,F106))))))))) -> FY21
D11: Salary | E11: Cal. | F11: Acad. | G11: Summer
A12: A | C12: Key Personnel | D12: Monthly | E12: Months | F12: Months | G12: Months | H12: =SUM(H13:H21) -> 0 | I12: =SUM(I13:I21) -> 0 | J12: =SUM(J13:J21) -> 0 | K12: =SUM(K13:K21) -> 0 | L12: =SUM(L13:L21) -> 0 | M12: =SUM(H12:L12) -> 0
B13: 1 | C13: PI 1 | D13: 0 | E13: 1 | F13: 0 | G13: 0 | H13: =D13*(E13+F13+G13) -> 0 | I13: =H13*1.03 -> 0 | J13: =I13*1.03 -> 0 | K13: =J13*1.03 -> 0 | L13: =K13*1.03 -> 0 | M13: =SUM(H13:L13) -> 0
B14: 2 | C14: PI 2 | D14: 0 | E14: 1 | F14: 0 | G14: 0 | H14: =D14*(E14+F14+G14) -> 0 | I14: =H14*1.03 -> 0 | J14: =I14*1.03 -> 0 | K14: 0 | L14: =K14*1.03 -> 0 | M14: 0
B15: 3 | C15: PI 3 | D15: 0 | E15: 1 | F15: 0 | G15: 0 | H15: =D15*(E15+F15+G15) -> 0 | I15: =H15*1.03 -> 0 | J15: 0 | K15: 0 | L15: 0 | M15: 0
B16: 4 | C16: PI 4 | D16: 0 | E16: 1 | F16: 0 | G16: 0 | H16: =D16*(E16+F16+G16) -> 0 | I16: 0 | J16: 0 | K16: 0 | L16: 0 | M16: 0
B17: 5 | C17: PI 5 | D17: 0 | E17: 1 | F17: 0 | G17: 0 | H17: 0 | I17: 0 | J17: 0 | K17: 0 | L17: 0 | M17: 0
B18: 6 | C18: PI 6 | D18: 0 | E18: 1 | F18: 0 | G18: 0 | H18: 0 | I18: 0 | J18: 0 | K18: 0 | L18: 0 | M18: 0
B19: 7 | C19: PI 7 | D19: 0 | E19: 1 | F19: 0 | G19: 0 | H19: 0 | I19: 0 | J19: 0 | K19: 0 | L19: 0 | M19: 0
B20: 8 | C20: PI 8 | D20: 0 | E20: 1 | F20: 0 | G20: 0 | H20: 0 | I20: 0 | J20: 0 | K20: 0 | L20: 0 | M20: 0
B21: 9 | C21: PI 9 | D21: 0 | E21: 1 | F21: 0 | G21: 0 | H21: 0 | I21: 0 | J21: 0 | K21: 0 | L21: 0 | M21: 0
E22: Cal. | G22: Number of
A23: B | C23: Other Personnel | D23: Monthly | E23: Months | G23: persons | H23: =SUM(H24:H29) -> 0 | I23: =SUM(I24:I29) -> 0 | J23: =SUM(J24:J29) -> 0 | K23: =SUM(K24:K29) -> 0 | L23: =SUM(L24:L29) -> 0 | M23: =SUM(H23:L23) -> 0
B24: 1 | C24: Post Doc | D24: 0 | E24: 1 | G24: 1 | H24: =D24*(E24)*G24 -> 0 | I24: =+H24*1.03 -> 0 | J24: 0 | K24: 0 | L24: =+K24*1.03 -> 0 | M24: 0
B25: 2 | C25: Post Doc | D25: 0 | E25: 1 | G25: 1 | H25: =D25*(E25)*G25 -> 0 | I25: 0 | J25: 0 | K25: 0 | L25: 0 | M25: 0
B26: 3 | C26: Research Asst-Halftime | D26: 0 | E26: 1 | G26: 1 | H26: =D26*(E26)*G26 -> 0 | I26: =H26*1.03 -> 0 | J26: 0 | K26: 0 | L26: 0 | M26: 0
B27: 4 | C27: Research Asst-Halftime | D27: 0 | E27: 1 | G27: 1 | H27: =+D27*E27*G27 -> 0 | I27: 0 | J27: 0 | K27: 0 | L27: 0 | M27: 0
B28: 5 | C28: Hourly Undergraduate student | D28: 0 | E28: 1 | G28: 1 | H28: =D28*(E28)*G28 -> 0 | I28: 0 | J28: 0 | K28: 0 | L28: 0 | M28: 0
B29: 6 | C29: Professional & Scientific | D29: 0 | E29: 1 | G29: 1 | H29: =D29*(E29)*G29 -> 0 | I29: 0 | J29: 0 | K29: 0 | L29: 0 | M29: 0
C31: Subtotal: Salaries and Wages | H31: =+H12+H23 -> 0 | I31: =+I12+I23 -> 0 | J31: =+J12+J23 -> 0 | K31: =+K12+K23 -> 0 | L31: =+L12+L23 -> 0 | M31: =M12+M23 -> 0
A33: C | C33: Fringe Benefits | D33: Rate | H33: =SUM(H34:H48) -> 0 | I33: =SUM(I34:I48) -> 0 | J33: =SUM(J34:J48) -> 0 | K33: =SUM(K34:K48) -> 0 | L33: =SUM(L34:L48) -> 0 | M33: =SUM(H33:L33) -> 0
C34: =+C13 -> PI 1 | D34: 0.275 | H34: =$D$34*H13 -> 0 | I34: =$D$34*I13 -> 0 | J34: =$D$34*J13 -> 0 | K34: =$D$34*K13 -> 0 | L34: =$D$34*L13 -> 0 | M34: 0
C35: =+C14 -> PI 2 | D35: 0.275 | H35: =$D$35*H14 -> 0 | I35: =$D$35*I14 -> 0 | J35: =$D$35*J14 -> 0 | K35: =$D$35*K14 -> 0 | L35: =$D$35*L14 -> 0 | M35: 0
C36: =+C15 -> PI 3 | D36: 0.275 | H36: =$D$36*H15 -> 0 | I36: =$D$36*I15 -> 0 | J36: =$D$36*J15 -> 0 | K36: =$D$36*K15 -> 0 | L36: =$D$36*L15 -> 0 | M36: 0
C37: PI 4 | D37: 0.275 | H37: =$D$37*H16 -> 0 | I37: =$D$37*I21 -> 0 | J37: =$D$37*J21 -> 0 | K37: =$D$37*K21 -> 0 | L37: =$D$37*L21 -> 0 | M37: 0
C38: PI 5 | D38: 0.275 | H38: =$D$38*H17 -> 0 | I38: =$D$37*I17 -> 0 | J38: =$D$37*J17 -> 0 | K38: =$D$37*K17 -> 0 | L38: =$D$37*L17 -> 0 | M38: 0
C39: PI 6 | D39: 0.275 | H39: =$D$39*H18 -> 0 | I39: =$D$39*I18 -> 0 | J39: =$D$39*J18 -> 0 | K39: =$D$39*K18 -> 0 | L39: =$D$39*L18 -> 0 | M39: 0
C40: PI 7 | D40: 0.275 | H40: =$D$40*H19 -> 0 | I40: =$D$40*I19 -> 0 | J40: =$D$40*J19 -> 0 | K40: =$D$40*K19 -> 0 | L40: =$D$40*L19 -> 0 | M40: 0
C41: PI 8 | D41: 0.275 | H41: =$D$41*H20 -> 0 | I41: =$D$41*I20 -> 0 | J41: =$D$41*J20 -> 0 | K41: =$D$41*K20 -> 0 | L41: =$D$41*L20 -> 0 | M41: 0
C42: PI 9 | D42: 0.275 | H42: =$D$42*H21 -> 0 | I42: =$D$42*I21 -> 0 | J42: =$D$42*J21 -> 0 | K42: =$D$42*K21 -> 0 | L42: =$D$42*L21 -> 0 | M42: 0
C43: =+C24 -> Post Doc | D43: 0.329 | H43: =$D$43*H24 -> 0 | I43: =$D$43*I24 -> 0 | J43: =$D$43*J24 -> 0 | K43: =$D$43*K24 -> 0 | L43: =$D$43*L24 -> 0 | M43: 0
C44: Post Doc | D44: 0.329 | H44: =$D$44*H25 -> 0 | I44: =$D$44*I25 -> 0 | J44: =$D$44*J25 -> 0 | K44: =$D$44*K25 -> 0 | L44: =$D$44*L25 -> 0 | M44: 0
C45: Research Asst-Halftime | D45: 0.098 | H45: =$D$45*H26 -> 0 | I45: =$D$45*I26 -> 0 | J45: =$D$45*J26 -> 0 | K45: =$D$45*K26 -> 0 | L45: =$D$45*L26 -> 0 | M45: 0
C46: Research Asst-Halftime | D46: 0.098 | H46: =$D$46*H27 -> 0 | I46: =$D$46*I27 -> 0 | J46: =$D$46*J27 -> 0 | K46: =$D$46*K27 -> 0 | L46: =$D$46*L27 -> 0 | M46: 0
C47: Hourly Undergraduate student | D47: 0.006 | H47: =$D$47*H28 -> 0 | I47: =$D$47*I28 -> 0 | J47: =$D$47*J28 -> 0 | K47: =$D$47*K28 -> 0 | L47: =$D$47*L28 -> 0 | M47: 0
C48: Professional & Scientific | D48: 0.345 | H48: =$D$48*H29 -> 0 | I48: =$D$48*I29 -> 0 | J48: =$D$48*J29 -> 0 | K48: =$D$48*K29 -> 0 | L48: =$D$48*L29 -> 0 | M48: 0
C50: Subtotal: Salaries, Wages, and Benefits | H50: =H31+H33 -> 0 | I50: =I31+I33 -> 0 | J50: =J31+J33 -> 0 | K50: =K31+K33 -> 0 | L50: =L31+L33 -> 0 | M50: =SUM(H50:L50) -> 0
A52: D | C52: Equipment (List Item and $ amount for each item > $5k) | H52: =H53+H54 -> 0 | I52: =I53+I54 -> 0 | J52: 0 | K52: 0 | L52: 0 | M52: =SUM(H52:L52) -> 0
C53: 1. Centrifuge | H53: 0 | I53: 0 | J53: 0 | K53: 0 | L53: 0 | M53: =SUM(H53:L53) -> 0
C54: 2
A56: E | C56: Travel | H56: =SUM(H57:H58) -> 0 | I56: =SUM(I57:I58) -> 0 | J56: =SUM(J57:J58) -> 0 | K56: =SUM(K57:K58) -> 0 | L56: =SUM(L57:L58) -> 0 | M56: =SUM(H56:L56) -> 0
C57: 1. Domestic Travel | H57: 0 | I57: 0 | J57: 0 | K57: 0 | L57: 0 | M57: =SUM(H57:L57) -> 0
C58: 2. Foreign Travel | H58: 0 | I58: 0 | J58: 0 | K58: 0 | L58: 0 | M58: =SUM(H58:L58) -> 0
A60: G | C60: Other Direct Costs | H60: =SUM(H61:H75) -> 0 | I60: =SUM(I61:I75) -> 0 | J60: =SUM(J61:J75) -> 0 | K60: =SUM(K61:K75) -> 0 | L60: =SUM(L61:L75) -> 0 | M60: =SUM(H60:L60) -> 0
B61: 1 | C61: Materials and Supplies | H61: 0 | I61: 0 | J61: 0 | K61: 0 | L61: 0 | M61: 0
B62: 2 | C62: Publication cost | H62: 0 | I62: 0 | J62: 0 | K62: 0 | L62: 0 | M62: 0
B63: 3 | C63: Computing support | H63: 0 | I63: 0 | J63: 0 | K63: 0 | L63: 0 | M63: 0
B64: 4 | C64: Instrumentation facility | H64: 0 | I64: 0 | J64: 0 | K64: 0 | L64: 0 | M64: 0
B65: 5 | C65: Subcontractor1 - Subject to IDC (first $25,000) | E65: See notes below | H65: 0 | I65: 0 | J65: 0 | K65: 0 | L65: 0 | M65: 0
C66: NOT subject to IDC (Amount over $25,000) | H66: 0 | I66: 0 | J66: 0 | K66: 0 | L66: 0 | M66: 0
B67: 5 | C67: Subcontractor2 - Subject to IDC (first $25,000) | E67: See notes below | H67: 0 | I67: 0 | J67: 0 | K67: 0 | L67: 0 | M67: 0
C68: NOT subject to IDC (Amount over $25,000) | H68: 0 | I68: 0 | J68: 0 | K68: 0 | L68: 0 | M68: 0
B69: 7 | C69: Tuition - Non-Engineering | D69: (Click on "Tuition" sheet) | H69: =Tuition!K6 -> 0 | I69: =Tuition!M6 -> 0 | J69: =Tuition!O6 -> 0 | K69: =Tuition!Q6 -> 0 | L69: =Tuition!S6 -> 0 | M69: 0
B70: 8 | C70: Tuition - Engineering | D70: (Click on "Tuition" sheet) | H70: =Tuition!K26 -> 0 | I70: =Tuition!M26 -> 0 | J70: =Tuition!O26 -> 0 | K70: =Tuition!Q26 -> 0 | L70: =Tuition!S26 -> 0 | M70: 0
B71: 8 | C71: Tuition-Business & STB | D71: (Click on "Tuition" sheet) | H71: =Tuition!K46 -> 0 | I71: =Tuition!M46 -> 0 | J71: =Tuition!O46 -> 0 | K71: =Tuition!Q46 -> 0 | L71: =Tuition!S46 -> 0 | M71: =SUM(H71:L71) -> 0
B72: 8 | C72: Tuition - Specific Grad Depts | D72: (Click on "Tuition" sheet) | H72: =Tuition!K67 -> 0 | I72: =Tuition!M67 -> 0 | J72: =Tuition!O67 -> 0 | K72: =Tuition!Q67 -> 0 | L72: =Tuition!S67 -> 0 | M72: =SUM(H72:L72) -> 0
B73: 9 | C73: other | H73: 0 | I73: 0 | J73: 0 | K73: 0 | L73: 0 | M73: =SUM(H73:L73) -> 0
B74: 10 | C74: Other | H74: 0 | I74: 0 | J74: 0 | K74: 0 | L74: 0 | M74: 0
B75: 11 | C75: Other | H75: 0 | I75: 0 | J75: 0 | K75: 0 | L75: 0 | M75: 0
C77: Subtotal: Total Direct Costs (TDC) | H77: =H50+H52+H56+H60 -> 0 | I77: =I50+I52+I56+I60 -> 0 | J77: =J50+J52+J56+J60 -> 0 | K77: =K50+K52+K56+K60 -> 0 | L77: =L50+L52+L56+L60 -> 0 | M77: =ROUND(SUM(H77:L77),0) -> 0
C79: Subtotal: Modified Total Direct Costs | H79: =(H77-H52-H66-H68-H69-H70-H71-H72) -> 0 | I79: =(I77-I52-I66-I68-I69-I70-I71-I72) -> 0 | J79: =(J77-J52-J66-J68-J69-J70-J71-J72) -> 0 | K79: =(K77-K52-K66-K68-K69-K70-K71-K72) -> 0 | L79: =(L77-L52-L66-L68-L69-L70-L71-L72) -> 0 | M79: =SUM(H79:L79) -> 0
C80: [ MTDC = TDC - Tuition - Equipment - Participant Support Cost ]
A82: H | C82: Indirect Costs | H82: =SUM(H83:H83) -> 0 | I82: =SUM(I83:I83) -> 0 | J82: =SUM(J83:J83) -> 0 | K82: =SUM(K83:K83) -> 0 | L82: =SUM(L83:L83) -> 0 | M82: =ROUND(SUM(H82:L82),0) -> 0
C83: IDC on MTDC | H83: =ROUND(H84*(H79),0) -> 0 | I83: =ROUND(I84*(I79),0) -> 0 | J83: =ROUND(J84*(J79),0) -> 0 | K83: =ROUND(K84*(K79),0) -> 0 | L83: =ROUND(L84*(L79),0) -> 0
D84: [ IDC = MTDC * Indirect Rate ] | G84: Rate Used | H84: =IF(H10=F97,G97,IF(H10=F98,G98,IF(H10=F99,G99,IF(H10=F100,G100,IF(H10=F101,G101,IF(H10=F102,G102)))))) -> 0.52 | I84: =IF(I10=F97,G97,IF(I10=F98,G98,IF(I10=F99,G99,IF(I10=F100,G100,IF(I10=F101,G101,IF(I10=F102,G102,IF(I10=F103,G103,IF(I10=F104,G104,IF(I10=F105,G105,IF(I10=F106,G106)))))))))) -> 0.52 | J84: =IF(J10=F97,G97,IF(J10=F98,G98,IF(J10=F99,G99,IF(J10=F100,G100,IF(J10=F101,G101,IF(J10=F102,G102,IF(J10=F103,G103,IF(J10=F104,G104,IF(J10=F105,G105,IF(J10=F106,G106)))))))))) -> 0.53 | K84: =IF(K10=F97,G97,IF(K10=F98,G98,IF(K10=F99,G99,IF(K10=F100,G100,IF(K10=F101,G101,IF(K10=F102,G102,IF(K10=F103,G103,IF(K10=F104,G104,IF(K10=F105,G105,IF(K10=F106,G106)))))))))) -> 0.53 | L84: =IF(L10=F97,G97,IF(L10=F98,G98,IF(L10=F99,G99,IF(L10=F100,G100,IF(L10=F101,G101,IF(L10=F102,G102,IF(L10=F103,G103,IF(L10=F104,G104,IF(L10=F105,G105,IF(L10=F106,G106)))))))))) -> 0.53
A86: I | C86: Total Project Costs | H86: =ROUND(H77+H82,0) -> 0 | I86: =ROUND(I77+I82,0) -> 0 | J86: =ROUND(J77+J82,0) -> 0 | K86: =ROUND(K77+K82,0) -> 0 | L86: =ROUND(L77+L82,0) -> 0 | M86: =SUM(H86:L86) -> 0
C87: [ Total = TDC + IDC ]
C92: NOTES:
C93: This budget is not to be distrubuted outside of the university.
C94: In order to submit budget to sponsor, print External Budget page either physically or to a PDF.
C96: Indirect Cost Categories: | F96: FY | G96: F&A Rate
B97: 0.52 | C97: On-Campus Organized Research FY17-18 | F97: FY17 | G97: 0.52
B98: 0.53 | C98: On-Campus Organized Research FY19-21 | F98: FY18 | G98: 0.52
B99: 0.51 | C99: On Campus Instruction | F99: FY19 | G99: 0.53
B100: 0.32 | C100: On-Campus Other Sponsored Activities | F100: FY20 | G100: 0.53
B101: 0.26 | C101: Off-Campus All Programs | F101: FY21 | G101: 0.53
F102: FY22 | G102: 0.53
C103: Benefits: | F103: FY23 | G103: 0.53
C104: A&B | D104: 0.275 | F104: FY24 | G104: 0.53
C105: C | D105: 0.098 | F105: FY25 | G105: 0.53
C106: D | D106: 0.329 | F106: FY26 | G106: 0.53
C107: P | D107: 0.345
C108: E | D108: 0.458
C109: XH (Student hourly) | D109: 0.006
C110: XH (Non-Student hourly) | D110: 0.171
C112: Post Doc Salary Range:
C114: http://www.grad-college.iastate.edu/post_doc/policies.php
C117: Tuition: Drop-down boxes for academic terms and appointment time (1/4-time, 1/2-time) have been disabled - you'll need to type the correct term and
C118: appointment time for each academic year (i.e. Summer 2011, Fall 2011, Spring 2012, etc.) to display the correct tuition amount for the corresponding term and
C119: appointment time.

Sheet External budget
A1: ='Internal budget'!A1 -> Project Budget Worksheet - Iowa State University of Science and Technology
A2: Budget for Industry Proposals
A3: ='Internal budget'!A3 -> Program Sponsor | D3: ='Internal budget'!D3 -> XYZ Company
A4: ='Internal budget'!A4 -> Title | D4: ='Internal budget'!D4 -> The best proposal ever
A5: ='Internal budget'!A5 -> PI | D5: ='Internal budget'!D5 -> Professor Smith
A6: ='Internal budget'!A6 -> Period of Performance | D6: ='Internal budget'!D6 -> 1/1/2017 to 12/31/2017
A7: ='Internal budget'!A7 -> Deadline | D7: ='Internal budget'!D7 -> 00:00:00
H9: Year 1 | I9: Year 2 | J9: Year 3 | K9: Year 4 | L9: Year 5 | M9: Total
E11: Cal. | F11: Acad. | G11: Summer
A12: A | C12: Key Personnel | E12: Months | F12: Months | G12: Months | H12: =SUM(H13:H21) -> 0 | I12: =SUM(I13:I21) -> 0 | J12: =SUM(J13:J21) -> 0 | K12: =SUM(K13:K21) -> 0 | L12: =SUM(L13:L21) -> 0 | M12: =SUM(H12:L12) -> 0
B13: 1 | C13: ='Internal budget'!C13 -> PI 1 | E13: ='Internal budget'!E13 -> 1 | F13: ='Internal budget'!F13 -> 0 | G13: ='Internal budget'!G13 -> 0 | H13: =(1+'Internal budget'!$H$84)*('Internal budget'!H13*(1+'Internal budget'!D34)) -> 0 | I13: =(1+'Internal budget'!$I$84)*('Internal budget'!I13*(1+'Internal budget'!D34)) -> 0 | J13: =(1+'Internal budget'!$J$84)*('Internal budget'!J13*(1+'Internal budget'!D34)) -> 0 | K13: =(1+'Internal budget'!$K$84)*('Internal budget'!K13*(1+'Internal budget'!D34)) -> 0 | L13: =(1+'Internal budget'!$L$84)*('Internal budget'!L13*(1+'Internal budget'!D34)) -> 0 | M13: =SUM(H13:L13) -> 0
B14: 2 | C14: ='Internal budget'!C14 -> PI 2 | E14: ='Internal budget'!E14 -> 1 | F14: ='Internal budget'!F14 -> 0 | G14: ='Internal budget'!G14 -> 0 | H14: =(1+'Internal budget'!$H$84)*('Internal budget'!H14*(1+'Internal budget'!D35)) -> 0 | I14: =(1+'Internal budget'!$I$84)*('Internal budget'!I14*(1+'Internal budget'!D35)) -> 0 | J14: =(1+'Internal budget'!$J$84)*('Internal budget'!J14*(1+'Internal budget'!D35)) -> 0 | K14: =(1+'Internal budget'!$K$84)*('Internal budget'!K14*(1+'Internal budget'!D35)) -> 0 | L14: =(1+'Internal budget'!$L$84)*('Internal budget'!L14*(1+'Internal budget'!D35)) -> 0 | M14: =SUM(H14:L14) -> 0
B15: 3 | C15: ='Internal budget'!C15 -> PI 3 | E15: ='Internal budget'!E15 -> 1 | F15: ='Internal budget'!F15 -> 0 | G15: ='Internal budget'!G15 -> 0 | H15: =(1+'Internal budget'!$H$84)*('Internal budget'!H15*(1+'Internal budget'!D36)) -> 0 | I15: =(1+'Internal budget'!$I$84)*('Internal budget'!I15*(1+'Internal budget'!D36)) -> 0 | J15: =(1+'Internal budget'!$J$84)*('Internal budget'!J15*(1+'Internal budget'!D36)) -> 0 | K15: =(1+'Internal budget'!$K$84)*('Internal budget'!K15*(1+'Internal budget'!D36)) -> 0 | L15: =(1+'Internal budget'!$L$84)*('Internal budget'!L15*(1+'Internal budget'!D36)) -> 0 | M15: =SUM(H15:L15) -> 0
B16: 4 | C16: ='Internal budget'!C16 -> PI 4 | E16: ='Internal budget'!E16 -> 1 | F16: ='Internal budget'!F16 -> 0 | G16: ='Internal budget'!G16 -> 0 | H16: =(1+'Internal budget'!$H$84)*('Internal budget'!H16*(1+'Internal budget'!D37)) -> 0 | I16: =(1+'Internal budget'!$I$84)*('Internal budget'!I16*(1+'Internal budget'!D37)) -> 0 | J16: =(1+'Internal budget'!$J$84)*('Internal budget'!J16*(1+'Internal budget'!D37)) -> 0 | K16: =(1+'Internal budget'!$K$84)*('Internal budget'!K16*(1+'Internal budget'!D37)) -> 0 | L16: =(1+'Internal budget'!$L$84)*('Internal budget'!L16*(1+'Internal budget'!D37)) -> 0 | M16: 0
B17: 5 | C17: ='Internal budget'!C17 -> PI 5 | E17: ='Internal budget'!E17 -> 1 | F17: ='Internal budget'!F17 -> 0 | G17: ='Internal budget'!G17 -> 0 | H17: =(1+'Internal budget'!$H$84)*('Internal budget'!H17*(1+'Internal budget'!D38)) -> 0 | I17: =(1+'Internal budget'!$I$84)*('Internal budget'!I17*(1+'Internal budget'!D38)) -> 0 | J17: =(1+'Internal budget'!$J$84)*('Internal budget'!J17*(1+'Internal budget'!D38)) -> 0 | K17: =(1+'Internal budget'!$K$84)*('Internal budget'!K17*(1+'Internal budget'!D38)) -> 0 | L17: =(1+'Internal budget'!$L$84)*('Internal budget'!L17*(1+'Internal budget'!D38)) -> 0 | M17: 0
B18: 6 | C18: ='Internal budget'!C18 -> PI 6 | E18: ='Internal budget'!E18 -> 1 | F18: ='Internal budget'!F18 -> 0 | G18: ='Internal budget'!G18 -> 0 | H18: =(1+'Internal budget'!$H$84)*('Internal budget'!H18*(1+'Internal budget'!D39)) -> 0 | I18: =(1+'Internal budget'!$I$84)*('Internal budget'!I18*(1+'Internal budget'!D39)) -> 0 | J18: =(1+'Internal budget'!$J$84)*('Internal budget'!J18*(1+'Internal budget'!D39)) -> 0 | K18: =(1+'Internal budget'!$K$84)*('Internal budget'!K18*(1+'Internal budget'!D39)) -> 0 | L18: =(1+'Internal budget'!$L$84)*('Internal budget'!L18*(1+'Internal budget'!D39)) -> 0 | M18: 0
B19: 7 | C19: ='Internal budget'!C19 -> PI 7 | E19: ='Internal budget'!E19 -> 1 | F19: ='Internal budget'!F19 -> 0 | G19: ='Internal budget'!G19 -> 0 | H19: =(1+'Internal budget'!$H$84)*('Internal budget'!H19*(1+'Internal budget'!D40)) -> 0 | I19: =(1+'Internal budget'!$I$84)*('Internal budget'!I19*(1+'Internal budget'!D40)) -> 0 | J19: =(1+'Internal budget'!$J$84)*('Internal budget'!J19*(1+'Internal budget'!D40)) -> 0 | K19: =(1+'Internal budget'!$K$84)*('Internal budget'!K19*(1+'Internal budget'!D40)) -> 0 | L19: =(1+'Internal budget'!$L$84)*('Internal budget'!L19*(1+'Internal budget'!D40)) -> 0 | M19: =SUM(H19:L19) -> 0
B20: 8 | C20: ='Internal budget'!C20 -> PI 8 | E20: ='Internal budget'!E20 -> 1 | F20: ='Internal budget'!F20 -> 0 | G20: ='Internal budget'!G20 -> 0 | H20: =(1+'Internal budget'!$H$84)*('Internal budget'!H20*(1+'Internal budget'!D41)) -> 0 | I20: =(1+'Internal budget'!$I$84)*('Internal budget'!I20*(1+'Internal budget'!D41)) -> 0 | J20: =(1+'Internal budget'!$J$84)*('Internal budget'!J20*(1+'Internal budget'!D41)) -> 0 | K20: =(1+'Internal budget'!$K$84)*('Internal budget'!K20*(1+'Internal budget'!D41)) -> 0 | L20: =(1+'Internal budget'!$L$84)*('Internal budget'!L20*(1+'Internal budget'!D41)) -> 0 | M20: 0
B21: 9 | C21: ='Internal budget'!C21 -> PI 9 | E21: ='Internal budget'!E21 -> 1 | F21: ='Internal budget'!F21 -> 0 | G21: ='Internal budget'!G21 -> 0 | H21: =(1+'Internal budget'!$H$84)*('Internal budget'!H21*(1+'Internal budget'!D42)) -> 0 | I21: =(1+'Internal budget'!$I$84)*('Internal budget'!I21*(1+'Internal budget'!D42)) -> 0 | J21: =(1+'Internal budget'!$J$84)*('Internal budget'!J21*(1+'Internal budget'!D42)) -> 0 | K21: =(1+'Internal budget'!$K$84)*('Internal budget'!K21*(1+'Internal budget'!D42)) -> 0 | L21: =(1+'Internal budget'!$L$84)*('Internal budget'!L21*(1+'Internal budget'!D42)) -> 0 | M21: =SUM(H21:L21) -> 0
E23: Cal. | G23: Number of
A24: B | C24: Other Personnel | E24: Months | G24: persons | H24: =SUM(H25:H30) -> 0 | I24: =SUM(I25:I30) -> 0 | J24: =SUM(J25:J30) -> 0 | K24: =SUM(K25:K30) -> 0 | L24: =SUM(L25:L30) -> 0 | M24: =SUM(H24:L24) -> 0
B25: 1 | C25: Post Doc | E25: ='Internal budget'!E24 -> 1 | G25: ='Internal budget'!G24 -> 1 | H25: =(1+'Internal budget'!$H$84)*('Internal budget'!H24*(1+'Internal budget'!D43)) -> 0 | I25: =(1+'Internal budget'!$I$84)*('Internal budget'!I24*(1+'Internal budget'!D43)) -> 0 | J25: =(1+'Internal budget'!$J$84)*('Internal budget'!J24*(1+'Internal budget'!D43)) -> 0 | K25: =(1+'Internal budget'!$K$84)*('Internal budget'!K24*(1+'Internal budget'!D43)) -> 0 | L25: =(1+'Internal budget'!$L$84)*('Internal budget'!L24*(1+'Internal budget'!D43)) -> 0 | M25: =SUM(H25:L25) -> 0
B26: 2 | C26: Post Doc | E26: ='Internal budget'!E25 -> 1 | G26: ='Internal budget'!G25 -> 1 | H26: =(1+'Internal budget'!$H$84)*('Internal budget'!H25*(1+'Internal budget'!D44)) -> 0 | I26: =(1+'Internal budget'!$I$84)*('Internal budget'!I25*(1+'Internal budget'!D44)) -> 0 | J26: =(1+'Internal budget'!$J$84)*('Internal budget'!J25*(1+'Internal budget'!D44)) -> 0 | K26: =(1+'Internal budget'!$K$84)*('Internal budget'!K25*(1+'Internal budget'!D44)) -> 0 | L26: =(1+'Internal budget'!$L$84)*('Internal budget'!L25*(1+'Internal budget'!D44)) -> 0 | M26: 0
B27: 3 | C27: Research Asst-Halftime | E27: ='Internal budget'!E26 -> 1 | G27: ='Internal budget'!G26 -> 1 | H27: =(1+'Internal budget'!$H$84)*('Internal budget'!H26*(1+'Internal budget'!D45)) -> 0 | I27: =(1+'Internal budget'!$I$84)*('Internal budget'!I26*(1+'Internal budget'!D45)) -> 0 | J27: =(1+'Internal budget'!$J$84)*('Internal budget'!J26*(1+'Internal budget'!D45)) -> 0 | K27: =(1+'Internal budget'!$K$84)*('Internal budget'!K26*(1+'Internal budget'!D45)) -> 0 | L27: =(1+'Internal budget'!$L$84)*('Internal budget'!L26*(1+'Internal budget'!D45)) -> 0 | M27: 0
B28: 4 | C28: Research Asst-Halftime | E28: ='Internal budget'!E27 -> 1 | G28: ='Internal budget'!G27 -> 1 | H28: =(1+'Internal budget'!$H$84)*('Internal budget'!H27*(1+'Internal budget'!D46)) -> 0 | I28: =(1+'Internal budget'!$I$84)*('Internal budget'!I27*(1+'Internal budget'!D46)) -> 0 | J28: =(1+'Internal budget'!$J$84)*('Internal budget'!J27*(1+'Internal budget'!D46)) -> 0 | K28: =(1+'Internal budget'!$K$84)*('Internal budget'!K27*(1+'Internal budget'!D46)) -> 0 | L28: =(1+'Internal budget'!$L$84)*('Internal budget'!L27*(1+'Internal budget'!D46)) -> 0 | M28: =SUM(H28:L28) -> 0
B29: 5 | C29: Hourly Undergraduate student | E29: ='Internal budget'!E28 -> 1 | G29: ='Internal budget'!G28 -> 1 | H29: =(1+'Internal budget'!$H$84)*('Internal budget'!H28*(1+'Internal budget'!D47)) -> 0 | I29: =(1+'Internal budget'!$I$84)*('Internal budget'!I28*(1+'Internal budget'!D47)) -> 0 | J29: =(1+'Internal budget'!$J$84)*('Internal budget'!J28*(1+'Internal budget'!D47)) -> 0 | K29: =(1+'Internal budget'!$K$84)*('Internal budget'!K28*(1+'Internal budget'!D47)) -> 0 | L29: =(1+'Internal budget'!$L$84)*('Internal budget'!L28*(1+'Internal budget'!D47)) -> 0 | M29: =SUM(H29:L29) -> 0
B30: 6 | C30: ='Internal budget'!C48 -> Professional & Scientific | E30: ='Internal budget'!E29 -> 1 | G30: ='Internal budget'!G29 -> 1 | H30: =(1+'Internal budget'!$H$84)*('Internal budget'!H29*(1+'Internal budget'!D48)) -> 0 | I30: =(1+'Internal budget'!$I$84)*('Internal budget'!I29*(1+'Internal budget'!D48)) -> 0 | J30: =(1+'Internal budget'!$J$84)*('Internal budget'!J29*(1+'Internal budget'!D48)) -> 0 | K30: =(1+'Internal budget'!$K$84)*('Internal budget'!K29*(1+'Internal budget'!D48)) -> 0 | L30: =(1+'Internal budget'!$L$84)*('Internal budget'!L29*(1+'Internal budget'!D48)) -> 0 | M30: =SUM(H30:L30) -> 0
C33: Subtotal: Personnel | H33: =H12+H24 -> 0 | I33: =I12+I24 -> 0 | J33: =J12+J24 -> 0 | K33: 0 | L33: 0 | M33: =SUM(H33:L33) -> 0
A35: D | C35: Equipment (List Item and $ amount for each item > $5k) | H35: =H36+H37 -> 0 | I35: =I36+I37 -> 0 | J35: =J36+J37 -> 0 | K35: =K36+K37 -> 0 | L35: =L36+L37 -> 0 | M35: =SUM(H35:L35) -> 0
C36: ='Internal budget'!C53 -> 1. Centrifuge | H36: =('Internal budget'!H53) -> 0 | I36: =('Internal budget'!I53) -> 0 | J36: =('Internal budget'!J53) -> 0 | K36: =('Internal budget'!K53) -> 0 | L36: =('Internal budget'!L53) -> 0 | M36: =SUM(H36:L36) -> 0
C37: ='Internal budget'!C54 -> 2 | H37: =('Internal budget'!H54) -> 0 | I37: =('Internal budget'!I54) -> 0 | J37: =('Internal budget'!J54) -> 0 | K37: =('Internal budget'!K54) -> 0 | L37: =('Internal budget'!L54) -> 0 | M37: =SUM(H37:L37) -> 0
A39: E | C39: Travel | H39: =SUM(H40:H41) -> 0 | I39: =SUM(I40:I41) -> 0 | J39: =SUM(J40:J41) -> 0 | K39: =SUM(K40:K41) -> 0 | L39: =SUM(L40:L41) -> 0 | M39: =SUM(H39:L39) -> 0
C40: ='Internal budget'!C57 -> 1. Domestic Travel | H40: ='Internal budget'!H57*(1+'Internal budget'!$H$84) -> 0 | I40: ='Internal budget'!I57*(1+'Internal budget'!$I$84) -> 0 | J40: ='Internal budget'!J57*(1+'Internal budget'!$J$84) -> 0 | K40: ='Internal budget'!K57*(1+'Internal budget'!$K$84) -> 0 | L40: ='Internal budget'!L57*(1+'Internal budget'!$L$84) -> 0 | M40: =SUM(H40:L40) -> 0
C41: ='Internal budget'!C58 -> 2. Foreign Travel | H41: ='Internal budget'!H58*(1+'Internal budget'!$H$84) -> 0 | I41: ='Internal budget'!I58*(1+'Internal budget'!$I$84) -> 0 | J41: ='Internal budget'!J58*(1+'Internal budget'!$J$84) -> 0 | K41: ='Internal budget'!K58*(1+'Internal budget'!$K$84) -> 0 | L41: ='Internal budget'!L58*(1+'Internal budget'!$L$84) -> 0 | M41: =SUM(H41:L41) -> 0
A43: G | C43: Other Direct Costs | H43: =SUM(H44:H56) -> 0 | I43: =SUM(I44:I56) -> 0 | J43: =SUM(J44:J56) -> 0 | K43: =SUM(K44:K56) -> 0 | L43: =SUM(L44:L56) -> 0 | M43: =SUM(H43:L43) -> 0
B44: 1 | C44: Materials and Supplies | H44: ='Internal budget'!H61*(1+'Internal budget'!$H$84) -> 0 | I44: ='Internal budget'!I61*(1+'Internal budget'!$I$84) -> 0 | J44: ='Internal budget'!J61*(1+'Internal budget'!$J$84) -> 0 | K44: ='Internal budget'!K61*(1+'Internal budget'!$K$84) -> 0 | L44: ='Internal budget'!L61*(1+'Internal budget'!$L$84) -> 0 | M44: =SUM(H44:L44) -> 0
B45: 2 | C45: Publication cost | H45: ='Internal budget'!H62*(1+'Internal budget'!$H$84) -> 0 | I45: ='Internal budget'!I62*(1+'Internal budget'!$I$84) -> 0 | J45: ='Internal budget'!J62*(1+'Internal budget'!$J$84) -> 0 | K45: ='Internal budget'!K62*(1+'Internal budget'!$K$84) -> 0 | L45: ='Internal budget'!L62*(1+'Internal budget'!$L$84) -> 0 | M45: =SUM(H45:L45) -> 0
B46: 3 | C46: Computing support | H46: ='Internal budget'!H63*(1+'Internal budget'!$H$84) -> 0 | I46: ='Internal budget'!I63*(1+'Internal budget'!$I$84) -> 0 | J46: ='Internal budget'!J63*(1+'Internal budget'!$J$84) -> 0 | K46: ='Internal budget'!K63*(1+'Internal budget'!$K$84) -> 0 | L46: ='Internal budget'!L63*(1+'Internal budget'!$L$84) -> 0 | M46: =SUM(H46:L46) -> 0
B47: 4 | C47: Instrumentation facility | H47: ='Internal budget'!H64*(1+'Internal budget'!$H$84) -> 0 | I47: ='Internal budget'!I64*(1+'Internal budget'!$I$84) -> 0 | J47: ='Internal budget'!J64*(1+'Internal budget'!$J$84) -> 0 | K47: ='Internal budget'!K64*(1+'Internal budget'!$K$84) -> 0 | L47: ='Internal budget'!L64*(1+'Internal budget'!$L$84) -> 0 | M47: =SUM(H47:L47) -> 0
B48: 5 | C48: Subcontractor1 | H48: =('Internal budget'!H65*(1+'Internal budget'!$H$84))+'Internal budget'!H66 -> 0 | I48: =('Internal budget'!I65*(1+'Internal budget'!$I$84))+'Internal budget'!I66 -> 0 | J48: =('Internal budget'!J65*(1+'Internal budget'!$J$84))+'Internal budget'!J66 -> 0 | K48: =('Internal budget'!K65*(1+'Internal budget'!$K$84))+'Internal budget'!K66 -> 0 | L48: =('Internal budget'!L65*(1+'Internal budget'!$L$84))+'Internal budget'!L66 -> 0 | M48: 0
B49: 6 | C49: Subcontractor2 | H49: =('Internal budget'!H67*(1+'Internal budget'!$H$84))+'Internal budget'!H68 -> 0 | I49: =('Internal budget'!I67*(1+'Internal budget'!$I$84))+'Internal budget'!I68 -> 0 | J49: =('Internal budget'!J67*(1+'Internal budget'!$J$84))+'Internal budget'!J68 -> 0 | K49: =('Internal budget'!K67*(1+'Internal budget'!$K$84))+'Internal budget'!K68 -> 0 | L49: =('Internal budget'!L67*(1+'Internal budget'!$L$84))+'Internal budget'!L68 -> 0 | M49: 0
B50: 7 | C50: Tuition - Non-Engineering | H50: ='Internal budget'!H69 -> 0 | I50: ='Internal budget'!I69 -> 0 | J50: ='Internal budget'!J69 -> 0 | K50: ='Internal budget'!K69 -> 0 | L50: ='Internal budget'!L69 -> 0 | M50: 0
B51: 8 | C51: Tuition - Engineering | H51: ='Internal budget'!H70 -> 0 | I51: ='Internal budget'!I70 -> 0 | J51: ='Internal budget'!J70 -> 0 | K51: ='Internal budget'!K70 -> 0 | L51: ='Internal budget'!L70 -> 0 | M51: 0
B52: 9 | C52: Tuition - Business & STB | H52: ='Internal budget'!H71 -> 0 | I52: ='Internal budget'!I71 -> 0 | J52: ='Internal budget'!J71 -> 0 | K52: ='Internal budget'!K71 -> 0 | L52: ='Internal budget'!L71 -> 0 | M52: =SUM(H52:L52) -> 0
C53: Tuition - Specific Grad Depts | H53: ='Internal budget'!H72 -> 0 | I53: ='Internal budget'!I72 -> 0 | J53: ='Internal budget'!J72 -> 0 | K53: ='Internal budget'!K72 -> 0 | L53: ='Internal budget'!L72 -> 0 | M53: =SUM(H53:L53) -> 0
C54: Other | H54: ='Internal budget'!H73*(1+'Internal budget'!$H$84) -> 0 | I54: ='Internal budget'!I73*(1+'Internal budget'!$I$84) -> 0 | J54: ='Internal budget'!J73*(1+'Internal budget'!$J$84) -> 0 | K54: ='Internal budget'!K73*(1+'Internal budget'!$K$84) -> 0 | L54: ='Internal budget'!L73*(1+'Internal budget'!$L$84) -> 0 | M54: 0
B55: 9 | C55: Other | H55: ='Internal budget'!H74*(1+'Internal budget'!$H$84) -> 0 | I55: ='Internal budget'!I74*(1+'Internal budget'!$I$84) -> 0 | J55: ='Internal budget'!J74*(1+'Internal budget'!$J$84) -> 0 | K55: ='Internal budget'!K74*(1+'Internal budget'!$K$84) -> 0 | L55: ='Internal budget'!L74*(1+'Internal budget'!$L$84) -> 0 | M55: 0
B56: 10 | C56: Other | H56: ='Internal budget'!H75*(1+'Internal budget'!$H$84) -> 0 | I56: ='Internal budget'!I75*(1+'Internal budget'!$I$84) -> 0 | J56: ='Internal budget'!J75*(1+'Internal budget'!$J$84) -> 0 | K56: ='Internal budget'!K75*(1+'Internal budget'!$K$84) -> 0 | L56: ='Internal budget'!L75*(1+'Internal budget'!$L$84) -> 0 | M56: 0
A58: I | C58: Total Project Costs | H58: =H33+H35+H39+H43 -> 0 | I58: =I33+I35+I39+I43 -> 0 | J58: =J33+J35+J39+J43 -> 0 | K58: =K33+K35+K39+K43 -> 0 | L58: =L33+L35+L39+L43 -> 0 | M58: =SUM(H58:L58) -> 0

Sheet Tuition
C1: Tuition Costs | K1: Year 1 | M1: Year 2 | O1: Year 3 | Q1: Year 4 | S1: Year 5
C2: Note: semester can be changed by selecting a different year in the drop down
K3: Funds Requested | M3: Funds Requested | O3: Funds Requested | Q3: Funds Requested | S3: Funds Requested
A6: 8 | C6: Graduate Student Tuition (most Majors) | G6: select 1/4-time/1/2-time > > | I6: 1/2-time | K6: =ROUND(IF($I$6="1/2-time",K7,K8),0) -> 0 | M6: =ROUND(IF($I$6="1/2-time",M7,M8),0) -> 0 | O6: =ROUND(IF($I$6="1/2-time",O7,O8),0) -> 0 | Q6: =ROUND(IF($I$6="1/2-time",Q7,Q8),0) -> 0 | S6: =ROUND(IF($I$6="1/2-time",S7,S8),0) -> 0
A7: 8 | C7: Graduate Student Tuition | I7: Maximum | K7: =+C13*VLOOKUP(K13,$I$93:$Q$119,5,FALSE)+C15*VLOOKUP(K15,$I$93:$Q$119,5,FALSE)+C17*VLOOKUP(K17,$I$93:$Q$119,5,FALSE)+C19*VLOOKUP(K19,$I$93:$Q$119,9,FALSE)+C21*VLOOKUP(K21,$I$93:$Q$119,9,FALSE)+C23*VLOOKUP(K23,$I$93:$Q$119,9,FALSE) -> 0 | M7: =+E13*VLOOKUP(M13,$I$93:$Q$119,5,FALSE)+E15*VLOOKUP(M15,$I$93:$Q$119,5,FALSE)+E17*VLOOKUP(M17,$I$93:$Q$119,5,FALSE)+E19*VLOOKUP(M19,$I$93:$Q$119,9,FALSE)+E21*VLOOKUP(M21,$I$93:$Q$119,9,FALSE)+E23*VLOOKUP(M23,$I$93:$Q$119,9,FALSE) -> 0 | O7: =+F13*VLOOKUP(O13,$I$93:$Q$119,5,FALSE)+F15*VLOOKUP(O15,$I$93:$Q$119,5,FALSE)+F17*VLOOKUP(O17,$I$93:$Q$119,5,FALSE)+F19*VLOOKUP(O19,$I$93:$Q$119,9,FALSE)+F21*VLOOKUP(O21,$I$93:$Q$119,9,FALSE)+F23*VLOOKUP(O23,$I$93:$Q$119,9,FALSE) -> 0 | Q7: =+G13*VLOOKUP(Q13,$I$93:$Q$119,5,FALSE)+G15*VLOOKUP(Q15,$I$93:$Q$119,5,FALSE)+G17*VLOOKUP(Q17,$I$93:$Q$119,5,FALSE)+G19*VLOOKUP(Q19,$I$93:$Q$119,9,FALSE)+G21*VLOOKUP(Q21,$I$93:$Q$119,9,FALSE)+G23*VLOOKUP(Q23,$I$93:$Q$119,9,FALSE) -> 0 | S7: =+H13*VLOOKUP(S13,$I$93:$Q$119,5,FALSE)+H15*VLOOKUP(S15,$I$93:$Q$119,5,FALSE)+H17*VLOOKUP(S17,$I$93:$Q$119,5,FALSE)+H19*VLOOKUP(S19,$I$93:$Q$119,9,FALSE)+H21*VLOOKUP(S21,$I$93:$Q$119,9,FALSE)+H23*VLOOKUP(S23,$I$93:$Q$119,9,FALSE) -> 0
A8: 8 | C8: Graduate Student Tuition | I8: Minimum | K8: =+C13*VLOOKUP(K13,$I$93:$Q$119,3,FALSE)+C15*VLOOKUP(K15,$I$93:$Q$119,3,FALSE)+C17*VLOOKUP(K17,$I$93:$Q$119,3,FALSE)+C19*VLOOKUP(K19,$I$93:$Q$119,7,FALSE)+C21*VLOOKUP(K21,$I$93:$Q$119,7,FALSE)+C23*VLOOKUP(K23,$I$93:$Q$119,7,FALSE) -> 0 | M8: =+E13*VLOOKUP(M13,$I$93:$Q$119,3,FALSE)+E15*VLOOKUP(M15,$I$93:$Q$119,3,FALSE)+E17*VLOOKUP(M17,$I$93:$Q$119,3,FALSE)+E19*VLOOKUP(M19,$I$93:$Q$119,7,FALSE)+E21*VLOOKUP(M21,$I$93:$Q$119,7,FALSE)+E23*VLOOKUP(M23,$I$93:$Q$119,7,FALSE) -> 0 | O8: =+F13*VLOOKUP(O13,$I$93:$Q$119,3,FALSE)+F15*VLOOKUP(O15,$I$93:$Q$119,3,FALSE)+F17*VLOOKUP(O17,$I$93:$Q$119,3,FALSE)+F19*VLOOKUP(O19,$I$93:$Q$119,7,FALSE)+F21*VLOOKUP(O21,$I$93:$Q$119,7,FALSE)+F23*VLOOKUP(O23,$I$93:$Q$119,7,FALSE) -> 0 | Q8: =+G13*VLOOKUP(Q13,$I$93:$Q$119,3,FALSE)+G15*VLOOKUP(Q15,$I$93:$Q$119,3,FALSE)+G17*VLOOKUP(Q17,$I$93:$Q$119,3,FALSE)+G19*VLOOKUP(Q19,$I$93:$Q$119,7,FALSE)+G21*VLOOKUP(Q21,$I$93:$Q$119,7,FALSE)+G23*VLOOKUP(Q23,$I$93:$Q$119,7,FALSE) -> 0 | S8: =+H13*VLOOKUP(S13,$I$93:$Q$119,3,FALSE)+H15*VLOOKUP(S15,$I$93:$Q$119,3,FALSE)+H17*VLOOKUP(S17,$I$93:$Q$119,3,FALSE)+H19*VLOOKUP(S19,$I$93:$Q$119,7,FALSE)+H21*VLOOKUP(S21,$I$93:$Q$119,7,FALSE)+H23*VLOOKUP(S23,$I$93:$Q$119,7,FALSE) -> 0
C11: Graduate Student Tuition (most majors)
C12: Year 1 | E12: Year 2 | F12: Year 3 | G12: Year 4 | H12: Year 5
A13: Masters Students (enter no. of students per term) | C13: 0 | E13: 0 | F13: 0 | G13: 0 | H13: 0 | I13: 0 | K13: Summer 2017 | M13: Summer 2018 | O13: Summer 2019 | Q13: Summer 2020 | S13: Summer 2021
C15: 0 | E15: 0 | F15: 0 | G15: 0 | H15: 0 | I15: Fall | K15: Fall 2017 | M15: Fall 2018 | O15: Fall 2019 | Q15: Fall 2020 | S15: Fall 2021
C17: 0 | E17: 0 | F17: 0 | G17: 0 | H17: 0 | I17: Spring | K17: Spring 2017 | M17: Spring 2018 | O17: Spring 2019 | Q17: Spring 2020 | S17: Spring 2021
C18: Year 1 | E18: Year 2 | F18: Year 3 | G18: Year 4 | H18: Year 5
A19: PhD Students (enter no. of students per term) | C19: 0 | E19: 0 | F19: 0 | G19: 0 | H19: 0 | I19: Summer | K19: Summer 2017 | M19: Summer 2018 | O19: Summer 2019 | Q19: Summer 2020 | S19: Summer 2021
C21: 0 | E21: 0 | F21: 0 | G21: 0 | H21: 0 | I21: Fall | K21: Fall 2017 | M21: Fall 2018 | O21: Fall 2019 | Q21: Fall 2020 | S21: Fall 2021
C23: 0 | E23: 0 | F23: 0 | G23: 0 | H23: 0 | I23: Spring | K23: Spring 2017 | M23: Spring 2018 | O23: Spring 2019 | Q23: Spring 2020 | S23: Spring 2021
A26: 8 | C26: Graduate Student Tuition (Engineering & Architecture) | G26: select 1/4-time/1/2-time > > | I26: 1/2-time | K26: =ROUND(IF($I$26="1/2-TIME",K27,K28),0) -> 0 | M26: =ROUND(IF($I$26="1/2-TIME",M27,M28),0) -> 0 | O26: =ROUND(IF($I$26="1/2-TIME",O27,O28),0) -> 0 | Q26: =ROUND(IF($I$26="1/2-TIME",Q27,Q28),0) -> 0 | S26: =ROUND(IF($I$26="1/2-TIME",S27,S28),0) -> 0
A27: 8 | C27: Graduate Student Tuition | I27: Maximum | K27: =+C33*VLOOKUP(K33,$I$123:$Q$149,5,FALSE)+C35*VLOOKUP(K35,$I$123:$Q$149,5,FALSE)+C37*VLOOKUP(K37,$I$123:$Q$149,5,FALSE)+C39*VLOOKUP(K39,$I$123:$Q$149,9,FALSE)+C41*VLOOKUP(K41,$I$123:$Q$149,9,FALSE)+C43*VLOOKUP(K43,$I$123:$Q$149,9,FALSE) -> 0 | M27: =+E33*VLOOKUP(M33,$I$123:$Q$149,5,FALSE)+E35*VLOOKUP(M35,$I$123:$Q$149,5,FALSE)+E37*VLOOKUP(M37,$I$123:$Q$149,5,FALSE)+E39*VLOOKUP(M39,$I$123:$Q$149,9,FALSE)+E41*VLOOKUP(M41,$I$123:$Q$149,9,FALSE)+E43*VLOOKUP(M43,$I$123:$Q$149,9,FALSE) -> 0 | O27: =+F33*VLOOKUP(O33,$I$123:$Q$149,5,FALSE)+F35*VLOOKUP(O35,$I$123:$Q$149,5,FALSE)+F37*VLOOKUP(O37,$I$123:$Q$149,5,FALSE)+F39*VLOOKUP(O39,$I$123:$Q$149,9,FALSE)+F41*VLOOKUP(O41,$I$123:$Q$149,9,FALSE)+F43*VLOOKUP(O43,$I$123:$Q$149,9,FALSE) -> 0 | Q27: =+G33*VLOOKUP(Q33,$I$123:$Q$149,5,FALSE)+G35*VLOOKUP(Q35,$I$123:$Q$149,5,FALSE)+G37*VLOOKUP(Q37,$I$123:$Q$149,5,FALSE)+G39*VLOOKUP(Q39,$I$123:$Q$149,9,FALSE)+G41*VLOOKUP(Q41,$I$123:$Q$149,9,FALSE)+G43*VLOOKUP(Q43,$I$123:$Q$149,9,FALSE) -> 0 | S27: =+H33*VLOOKUP(S33,$I$123:$Q$149,5,FALSE)+H35*VLOOKUP(S35,$I$123:$Q$149,5,FALSE)+H37*VLOOKUP(S37,$I$123:$Q$149,5,FALSE)+H39*VLOOKUP(S39,$I$123:$Q$149,9,FALSE)+H41*VLOOKUP(S41,$I$123:$Q$149,9,FALSE)+H43*VLOOKUP(S43,$I$123:$Q$149,9,FALSE) -> 0
A28: 8 | C28: Graduate Student Tuition | I28: Minimum | K28: =+C33*VLOOKUP(K33,$I$123:$Q$149,3,FALSE)+C35*VLOOKUP(K35,$I$123:$Q$149,3,FALSE)+C37*VLOOKUP(K37,$I$123:$Q$149,3,FALSE)+C39*VLOOKUP(K39,$I$123:$Q$149,7,FALSE)+C41*VLOOKUP(K41,$I$123:$Q$149,7,FALSE)+C43*VLOOKUP(K43,$I$123:$Q$149,7,FALSE) -> 0 | M28: =+E33*VLOOKUP(M33,$I$123:$Q$149,3,FALSE)+E35*VLOOKUP(M35,$I$123:$Q$149,3,FALSE)+E37*VLOOKUP(M37,$I$123:$Q$149,3,FALSE)+E39*VLOOKUP(M39,$I$123:$Q$149,7,FALSE)+E41*VLOOKUP(M41,$I$123:$Q$149,7,FALSE)+E43*VLOOKUP(M43,$I$123:$Q$149,7,FALSE) -> 0 | O28: =+F33*VLOOKUP(O33,$I$123:$Q$149,3,FALSE)+F35*VLOOKUP(O35,$I$123:$Q$149,3,FALSE)+F37*VLOOKUP(O37,$I$123:$Q$149,3,FALSE)+F39*VLOOKUP(O39,$I$123:$Q$149,7,FALSE)+F41*VLOOKUP(O41,$I$123:$Q$149,7,FALSE)+F43*VLOOKUP(O43,$I$123:$Q$149,7,FALSE) -> 0 | Q28: =+G33*VLOOKUP(Q33,$I$123:$Q$149,3,FALSE)+G35*VLOOKUP(Q35,$I$123:$Q$149,3,FALSE)+G37*VLOOKUP(Q37,$I$123:$Q$149,3,FALSE)+G39*VLOOKUP(Q39,$I$123:$Q$149,7,FALSE)+G41*VLOOKUP(Q41,$I$123:$Q$149,7,FALSE)+G43*VLOOKUP(Q43,$I$123:$Q$149,7,FALSE) -> 0 | S28: =+H33*VLOOKUP(S33,$I$123:$Q$149,3,FALSE)+H35*VLOOKUP(S35,$I$123:$Q$149,3,FALSE)+H37*VLOOKUP(S37,$I$123:$Q$149,3,FALSE)+H39*VLOOKUP(S39,$I$123:$Q$149,7,FALSE)+H41*VLOOKUP(S41,$I$123:$Q$149,7,FALSE)+H43*VLOOKUP(S43,$I$123:$Q$149,7,FALSE) -> 0
C31: Engineering & Architecture Students Only
C32: Year 1 | E32: Year 2 | F32: Year 3 | G32: Year 4 | H32: Year 5
A33: Masters Students (enter no. of students per term) | C33: 0 | E33: 0 | F33: 0 | G33: 0 | H33: 0 | I33: Summer | K33: Summer 2017 | M33: Summer 2018 | O33: Summer 2019 | Q33: Summer 2020 | S33: Summer 2021
C35: 0 | E35: 0 | F35: 0 | G35: 0 | H35: 0 | I35: Fall | K35: Fall 2017 | M35: Fall 2018 | O35: Fall 2019 | Q35: Fall 2020 | S35: Fall 2021
C37: 0 | E37: 0 | F37: 0 | G37: 0 | H37: 0 | I37: Spring | K37: Spring 2017 | M37: Spring 2018 | O37: Spring 2019 | Q37: Spring 2020 | S37: Spring 2021
C38: Year 1 | E38: Year 2 | F38: Year 3 | G38: Year 4 | H38: Year 5
A39: PhD Students (enter no. of students per term) | C39: 0 | E39: 0 | F39: 0 | G39: 0 | H39: 0 | I39: Summer | K39: Summer 2017 | M39: Summer 2018 | O39: Summer 2019 | Q39: Summer 2020 | S39: Summer 2021
C41: 0 | E41: 0 | F41: 0 | G41: 0 | H41: 0 | I41: Fall | K41: Fall 2017 | M41: Fall 2018 | O41: Fall 2019 | Q41: Fall 2020 | S41: Fall 2021
C43: 0 | E43: 0 | F43: 0 | G43: 0 | H43: 0 | I43: Spring | K43: Spring 2017 | M43: Spring 2018 | O43: Spring 2019 | Q43: Spring 2020 | S43: Spring 2021
D44: 0
A46: 8 | C46: Graduate Student Tuition (Business & STB) | G46: select 1/4-time/1/2-time > > | I46: 1/2-time | K46: =ROUND(IF($I$46="1/2-TIME",K47,K48),0) -> 0 | M46: =ROUND(IF($I$46="1/2-TIME",M47,M48),0) -> 0 | O46: =ROUND(IF($I$46="1/2-TIME",O47,O48),0) -> 0 | Q46: =ROUND(IF($I$46="1/2-TIME",Q47,Q48),0) -> 0 | S46: =ROUND(IF($I$46="1/2-TIME",S47,S48),0) -> 0
A47: 8 | C47: Graduate Student Tuition | I47: Maximum | K47: =+C53*VLOOKUP(K53,$I$153:$Q$178,5,FALSE)+C55*VLOOKUP(K55,$I$153:$Q$178,5,FALSE)+C57*VLOOKUP(K57,$I$153:$Q$178,5,FALSE)+C59*VLOOKUP(K59,$I$153:$Q$178,9,FALSE)+C61*VLOOKUP(K61,$I$153:$Q$178,9,FALSE)+C63*VLOOKUP(K63,$I$153:$Q$178,9,FALSE) -> 0 | M47: =+E53*VLOOKUP(M53,$I$153:$Q$178,5,FALSE)+E55*VLOOKUP(M55,$I$153:$Q$178,5,FALSE)+E57*VLOOKUP(M57,$I$153:$Q$178,5,FALSE)+E59*VLOOKUP(M59,$I$153:$Q$178,9,FALSE)+E61*VLOOKUP(M61,$I$153:$Q$178,9,FALSE)+E63*VLOOKUP(M63,$I$153:$Q$178,9,FALSE) -> 0 | O47: =+F53*VLOOKUP(O53,$I$153:$Q$179,5,FALSE)+F55*VLOOKUP(O55,$I$153:$Q$179,5,FALSE)+F57*VLOOKUP(O57,$I$153:$Q$179,5,FALSE)+F59*VLOOKUP(O59,$I$153:$Q$179,9,FALSE)+F61*VLOOKUP(O61,$I$153:$Q$179,9,FALSE)+F63*VLOOKUP(O63,$I$153:$Q$179,9,FALSE) -> 0 | Q47: =+G53*VLOOKUP(Q53,$I$153:$Q$178,5,FALSE)+G55*VLOOKUP(Q55,$I$153:$Q$178,5,FALSE)+G57*VLOOKUP(Q57,$I$153:$Q$178,5,FALSE)+G59*VLOOKUP(Q59,$I$153:$Q$178,9,FALSE)+G61*VLOOKUP(Q61,$I$153:$Q$178,9,FALSE)+G63*VLOOKUP(Q63,$I$153:$Q$178,9,FALSE) -> 0 | S47: =+H53*VLOOKUP(S53,$I$153:$Q$178,5,FALSE)+H55*VLOOKUP(S55,$I$153:$Q$178,5,FALSE)+H57*VLOOKUP(S57,$I$153:$Q$178,5,FALSE)+H59*VLOOKUP(S59,$I$153:$Q$178,9,FALSE)+H61*VLOOKUP(S61,$I$153:$Q$178,9,FALSE)+H63*VLOOKUP(S63,$I$153:$Q$178,9,FALSE) -> 0
A48: 8 | C48: Graduate Student Tuition | I48: Minimum | K48: =+C53*VLOOKUP(K53,$I$153:$Q$178,3,FALSE)+C55*VLOOKUP(K55,$I$153:$Q$178,3,FALSE)+C57*VLOOKUP(K57,$I$153:$Q$178,3,FALSE)+C59*VLOOKUP(K59,$I$153:$Q$178,7,FALSE)+C61*VLOOKUP(K61,$I$153:$Q$178,7,FALSE)+C63*VLOOKUP(K63,$I$153:$Q$178,7,FALSE) -> 0 | M48: =+E53*VLOOKUP(M53,$I$153:$Q$178,3,FALSE)+E55*VLOOKUP(M55,$I$153:$Q$178,3,FALSE)+E57*VLOOKUP(M57,$I$153:$Q$178,3,FALSE)+E59*VLOOKUP(M59,$I$153:$Q$178,7,FALSE)+E61*VLOOKUP(M61,$I$153:$Q$178,7,FALSE)+E63*VLOOKUP(M63,$I$153:$Q$178,7,FALSE) -> 0 | O48: =+F53*VLOOKUP(O53,$I$153:$Q$179,3,FALSE)+F55*VLOOKUP(O55,$I$153:$Q$179,3,FALSE)+F57*VLOOKUP(O57,$I$153:$Q$179,3,FALSE)+F59*VLOOKUP(O59,$I$153:$Q$179,7,FALSE)+F61*VLOOKUP(O61,$I$153:$Q$179,7,FALSE)+F63*VLOOKUP(O63,$I$153:$Q$179,7,FALSE) -> 0 | Q48: =+G53*VLOOKUP(Q53,$I$153:$Q$178,3,FALSE)+G55*VLOOKUP(Q55,$I$153:$Q$178,3,FALSE)+G57*VLOOKUP(Q57,$I$153:$Q$178,3,FALSE)+G59*VLOOKUP(Q59,$I$153:$Q$178,7,FALSE)+G61*VLOOKUP(Q61,$I$153:$Q$178,7,FALSE)+G63*VLOOKUP(Q63,$I$153:$Q$178,7,FALSE) -> 0 | S48: =+H53*VLOOKUP(S53,$I$153:$Q$178,3,FALSE)+H55*VLOOKUP(S55,$I$153:$Q$178,3,FALSE)+H57*VLOOKUP(S57,$I$153:$Q$178,3,FALSE)+H59*VLOOKUP(S59,$I$153:$Q$178,7,FALSE)+H61*VLOOKUP(S61,$I$153:$Q$178,7,FALSE)+H63*VLOOKUP(S63,$I$153:$Q$178,7,FALSE) -> 0
C51: Business and STB Students Only
C52: Year 1 | E52: Year 2 | F52: Year 3 | G52: Year 4 | H52: Year 5
A53: Masters Students (enter no. of students per term) | C53: 0 | E53: 0 | F53: 0 | G53: 0 | H53: 0 | I53: Summer | K53: Summer 2017 | M53: Summer 2018 | O53: Summer 2019 | Q53: Summer 2020 | S53: Summer 2021
C55: 0 | E55: 0 | F55: 0 | G55: 0 | H55: 0 | I55: Fall | K55: Fall 2017 | M55: Fall 2018 | O55: Fall 2019 | Q55: Fall 2020 | S55: Fall 2021
C57: 0 | E57: 0 | F57: 0 | G57: 0 | H57: 0 | I57: Spring | K57: Spring 2017 | M57: Spring 2018 | O57: Spring 2019 | Q57: Spring 2020 | S57: Spring 2021
C58: Year 1 | E58: Year 2 | F58: Year 3 | G58: Year 4 | H58: Year 5
A59: PhD Students (enter no. of students per term) | C59: 0 | E59: 0 | F59: 0 | G59: 0 | H59: 0 | I59: Summer | K59: Summer 2017 | M59: Summer 2018 | O59: Summer 2019 | Q59: Summer 2020 | S59: Summer 2021
C61: 0 | E61: 0 | F61: 0 | G61: 0 | H61: 0 | I61: Fall | K61: Fall 2017 | M61: Fall 2018 | O61: Fall 2019 | Q61: Fall 2020 | S61: Fall 2021
C63: 0 | E63: 0 | F63: 0 | G63: 0 | H63: 0 | I63: Spring | K63: Spring 2017 | M63: Spring 2018 | O63: Spring 2019 | Q63: Spring 2020 | S63: Spring 2021
A67: 8 | C67: Graduate Student Tuition (*Specific Graduate Departments) | G67: select 1/4-time/1/2-time > > | I67: 1/2-time | K67: =ROUND(IF($I67="1/2-time",K68,K69),0) -> 0 | M67: =ROUND(IF($I$67="1/2-time",M68,M69),0) -> 0 | O67: =ROUND(IF($I$67="1/2-time",O68,O69),0) -> 0 | Q67: =ROUND(IF($I$67="1/2-time",Q68,Q69),0) -> 0 | S67: =ROUND(IF($I$67="1/2-time",S68,S69),0) -> 0
A68: 8 | C68: Graduate Student Tuition | I68: Maximum | K68: =+C74*VLOOKUP(K74,$I$181:$Q$207,5,FALSE)+C76*VLOOKUP(K76,$I$181:$Q$207,5,FALSE)+C78*VLOOKUP(K78,$I$181:$Q$207,5,FALSE)+C80*VLOOKUP(K80,$I$181:$Q$207,9,FALSE)+C82*VLOOKUP(K82,$I$181:$Q$207,9,FALSE)+C84*VLOOKUP(K84,$I$181:$Q$207,9,FALSE) -> 0 | M68: =+E74*VLOOKUP(M74,$I$181:$Q$207,5,FALSE)+E76*VLOOKUP(M76,$I$181:$Q$207,5,FALSE)+E78*VLOOKUP(M78,$I$181:$Q$207,5,FALSE)+E80*VLOOKUP(M80,$I$181:$Q$207,9,FALSE)+E82*VLOOKUP(M82,$I$181:$Q$207,9,FALSE)+E84*VLOOKUP(M84,$I$181:$Q$207,9,FALSE) -> 0 | O68: =+F74*VLOOKUP(O74,$I$181:$Q$207,5,FALSE)+F76*VLOOKUP(O76,$I$181:$Q$207,5,FALSE)+F78*VLOOKUP(O78,$I$181:$Q$207,5,FALSE)+F80*VLOOKUP(O80,$I$181:$Q$207,9,FALSE)+F82*VLOOKUP(O82,$I$181:$Q$207,9,FALSE)+F84*VLOOKUP(O84,$I$181:$Q$207,9,FALSE) -> 0 | Q68: =+G74*VLOOKUP(Q74,$I$181:$Q$207,5,FALSE)+G76*VLOOKUP(Q76,$I$181:$Q$207,5,FALSE)+G78*VLOOKUP(Q78,$I$181:$Q$207,5,FALSE)+G80*VLOOKUP(Q80,$I$181:$Q$207,9,FALSE)+G82*VLOOKUP(Q82,$I$181:$Q$207,9,FALSE)+G84*VLOOKUP(Q84,$I$181:$Q$207,9,FALSE) -> 0 | S68: =+H74*VLOOKUP(S74,$I$181:$Q$207,5,FALSE)+H76*VLOOKUP(S76,$I$181:$Q$207,5,FALSE)+H78*VLOOKUP(S78,$I$181:$Q$207,5,FALSE)+H80*VLOOKUP(S80,$I$181:$Q$207,9,FALSE)+H82*VLOOKUP(S82,$I$181:$Q$207,9,FALSE)+H84*VLOOKUP(S84,$I$181:$Q$207,9,FALSE) -> 0
A69: 8 | C69: Graduate Student Tuition | I69: Minimum | K69: =+C74*VLOOKUP(K74,$I$181:$Q$207,3,FALSE)+C76*VLOOKUP(K76,$I$181:$Q$207,3,FALSE)+C78*VLOOKUP(K78,$I$181:$Q$207,3,FALSE)+C80*VLOOKUP(K80,$I$181:$Q$207,7,FALSE)+C82*VLOOKUP(K82,$I$181:$Q$207,7,FALSE)+C84*VLOOKUP(K84,$I$181:$Q$207,7,FALSE) -> 0 | M69: =+E74*VLOOKUP(M74,$I$181:$Q$207,3,FALSE)+E76*VLOOKUP(M76,$I$181:$Q$207,3,FALSE)+E78*VLOOKUP(M78,$I$181:$Q$207,3,FALSE)+E80*VLOOKUP(M80,$I$181:$Q$207,7,FALSE)+E82*VLOOKUP(M82,$I$181:$Q$207,7,FALSE)+E84*VLOOKUP(M84,$I$181:$Q$207,7,FALSE) -> 0 | O69: =+F74*VLOOKUP(O74,$I$181:$Q$207,3,FALSE)+F76*VLOOKUP(O76,$I$181:$Q$207,3,FALSE)+F78*VLOOKUP(O78,$I$181:$Q$207,3,FALSE)+F80*VLOOKUP(O80,$I$181:$Q$207,7,FALSE)+F82*VLOOKUP(O82,$I$181:$Q$207,7,FALSE)+F84*VLOOKUP(O84,$I$181:$Q$207,7,FALSE) -> 0 | Q69: =+G74*VLOOKUP(Q74,$I$181:$Q$207,3,FALSE)+G76*VLOOKUP(Q76,$I$181:$Q$207,3,FALSE)+G78*VLOOKUP(Q78,$I$181:$Q$207,3,FALSE)+G80*VLOOKUP(Q80,$I$181:$Q$207,7,FALSE)+G82*VLOOKUP(Q82,$I$181:$Q$207,7,FALSE)+G84*VLOOKUP(Q84,$I$181:$Q$207,7,FALSE) -> 0 | S69: =+H74*VLOOKUP(S74,$I$181:$Q$207,3,FALSE)+H76*VLOOKUP(S76,$I$181:$Q$207,3,FALSE)+H78*VLOOKUP(S78,$I$181:$Q$207,3,FALSE)+H80*VLOOKUP(S80,$I$181:$Q$207,7,FALSE)+H82*VLOOKUP(S82,$I$181:$Q$207,7,FALSE)+H84*VLOOKUP(S84,$I$181:$Q$207,7,FALSE) -> 0
C72: *Specific Graduate Departments
C73: Year 1 | E73: Year 2 | F73: Year 3 | G73: Year 4 | H73: Year 5
A74: Masters Students (enter no. of students per term) | C74: 0 | E74: 0 | F74: 0 | G74: 0 | H74: 0 | I74: Summer | K74: Summer 2017 | M74: Summer 2018 | O74: Summer 2019 | Q74: Summer 2020 | S74: Summer 2021
C76: 0 | E76: 0 | F76: 0 | G76: 0 | H76: 0 | I76: Fall | K76: Fall 2017 | M76: Fall 2018 | O76: Fall 2019 | Q76: Fall 2020 | S76: Fall 2021
C78: 0 | E78: 0 | F78: 0 | G78: 0 | H78: 0 | I78: Spring | K78: Spring 2017 | M78: Spring 2018 | O78: Spring 2019 | Q78: Spring 2020 | S78: Spring 2021
C79: Year 1 | E79: Year 2 | F79: Year 3 | G79: Year 4 | H79: Year 5
A80: PhD Students (enter no. of students per term) | C80: 0 | E80: 0 | F80: 0 | G80: 0 | H80: 0 | I80: Summer | K80: Summer 2017 | M80: Summer 2018 | O80: Summer 2019 | Q80: Summer 2020 | S80: Summer 2021
C82: 0 | E82: 0 | F82: 0 | G82: 0 | H82: 0 | I82: Fall | K82: Fall 2017 | M82: Fall 2018 | O82: Fall 2019 | Q82: Fall 2020 | S82: Fall 2021
C84: 0 | E84: 0 | F84: 0 | G84: 0 | H84: 0 | I84: Spring | K84: Spring 2017 | M84: Spring 2018 | O84: Spring 2019 | Q84: Spring 2020 | S84: Spring 2021
A85: *Animal Sci, Comp Sci, GDCB, Microbiology, Plant Path, BBMB, EEOB, Industrial Design, NREM
K89: Masters - Min | M89: Masters-Max | O89: PhD - Min | Q89: PhD - Max | S89: esc. Rate
S90: 1.042
S91: 1/4-time
S92: 1/2-time
I93: Fall 2017 | K93: =Q93/4 -> 1091 | M93: =O93 -> 2182 | O93: =Q93/2 -> 2182 | Q93: 4364
I94: Fall 2018 | K94: =K93*$S$90 -> 1136.822 | L94: =L93*$S$90 -> 0 | M94: 2273.644 | N94: 0 | O94: 2273.644 | P94: 0 | Q94: 4547.288
I95: Fall 2019 | K95: =K94*$S$90 -> 1184.568524 | M95: 2369.137048 | O95: 2369.137048 | Q95: 4738.274096
I96: Fall 2020 | K96: 1234.320402 | M96: 2468.640804 | O96: 2468.640804 | Q96: 4937.281608
I97: Fall 2021 | K97: 1286.161859 | M97: 2572.323718 | O97: 2572.323718 | Q97: 5144.647436
I98: Fall 2022 | K98: 1340.180657 | M98: 2680.361314 | O98: 2680.361314 | Q98: 5360.722628
I99: Fall 2023 | K99: 1396.468245 | M99: 2792.936489 | O99: 2792.936489 | Q99: 5585.872978
I100: Fall 2024 | K100: 1455.119911 | M100: 2910.239822 | O100: 2910.239822 | Q100: 5820.479643
I102: Spring 2017 | K102: =Q102/4 -> 1059.25 | M102: =Q102/2 -> 2118.5 | O102: =Q102/2 -> 2118.5 | Q102: 4237
I103: Spring 2018 | K103: =Q103/4 -> 1091 | M103: =O103 -> 2182 | O103: =Q103/2 -> 2182 | Q103: 4364
I104: Spring 2019 | K104: =K103*$S$90 -> 1136.822 | M104: =M103*$S$90 -> 2273.644 | O104: =O103*$S$90 -> 2273.644 | Q104: =Q103*$S$90 -> 4547.288
I105: Spring 2020 | K105: 1184.568524 | M105: 2369.137048 | O105: 2369.137048 | Q105: 4738.274096
I106: Spring 2021 | K106: 1234.320402 | M106: 2468.640804 | O106: 2468.640804 | Q106: 4937.281608
I107: Spring 2022 | K107: 1286.161859 | M107: 2572.323718 | O107: 2572.323718 | Q107: 5144.647436
I108: Spring 2023 | K108: 1340.180657 | M108: 2680.361314 | O108: 2680.361314 | Q108: 5360.722628
I109: Spring 2024 | K109: 1396.468245 | M109: 2792.936489 | O109: 2792.936489 | Q109: 5585.872978
I111: Summer 2017 | K111: =Q111/4 -> 606.25 | M111: =Q111/2 -> 1212.5 | O111: =Q111/2 -> 1212.5 | Q111: 2425
I112: Summer 2018 | K112: =K111*$S$90 -> 631.7125 | M112: =M111*$S$90 -> 1263.425 | O112: =O111*$S$90 -> 1263.425 | Q112: =Q111*$S$90 -> 2526.85
I113: Summer 2019 | K113: =K112*$S$90 -> 658.244425 | M113: =M112*$S$90 -> 1316.48885 | O113: =O112*$S$90 -> 1316.48885 | Q113: =Q112*$S$90 -> 2632.9777
I114: Summer 2020 | K114: 685.8906909 | M114: 1371.781382 | O114: 1371.781382 | Q114: =Q113*$S$90 -> 2743.562763
I115: Summer 2021 | K115: 714.6980999 | M115: 1429.3962 | O115: 1429.3962 | Q115: 2858.792399
I116: Summer 2022 | K116: 744.7154201 | M116: 1489.43084 | O116: 1489.43084 | Q116: 2978.86168
I117: Summer 2023 | K117: 775.9934677 | M117: 1551.986935 | O117: 1551.986935 | Q117: 3103.973871
I118: Summer 2024 | K118: 808.5851933 | M118: 1617.170387 | O118: 1617.170387 | Q118: 3234.340773
I120: Engineering & Architecture students
K121: Masters - Min | M121: Masters-Max | O121: PhD - Min | Q121: PhD - Max
I123: Fall 2017 | K123: =Q123/4 -> 1258 | M123: =O123 -> 2516 | O123: =Q123/2 -> 2516 | Q123: 5032
I124: Fall 2018 | K124: =K123*$S$90 -> 1310.836 | M124: =M123*$S$90 -> 2621.672 | O124: =O123*$S$90 -> 2621.672 | Q124: =Q123*$S$90 -> 5243.344
I125: Fall 2019 | K125: =K124*$S$90 -> 1365.891112 | M125: =M124*$S$90 -> 2731.782224 | O125: =O124*$S$90 -> 2731.782224 | Q125: =Q124*$S$90 -> 5463.564448
I126: Fall 2020 | K126: 1423.258539 | M126: 2846.517077 | O126: 2846.517077 | Q126: 5693.034155
I127: Fall 2021 | K127: 1483.035397 | M127: 2966.070795 | O127: 2966.070795 | Q127: 5932.141589
I128: Fall 2022 | K128: 1545.322884 | M128: 3090.645768 | O128: 3090.645768 | Q128: 6181.291536
I129: Fall 2023 | K129: 1610.226445 | M129: 3220.45289 | O129: 3220.45289 | Q129: 6440.905781
I130: Fall 2024 | K130: 1677.855956 | M130: 3355.711912 | O130: 3355.711912 | Q130: 6711.423823
K131: 0 | O131: 0
I132: Spring 2017 | K132: =Q132/4 -> 1221.25 | M132: =O132 -> 2442.5 | O132: =Q132/2 -> 2442.5 | Q132: 4885
I133: Spring 2018 | K133: =Q133/4 -> 1258 | M133: =O133 -> 2516 | O133: =Q133/2 -> 2516 | Q133: 5032
I134: Spring 2019 | K134: =K133*$S$90 -> 1310.836 | M134: =M133*$S$90 -> 2621.672 | O134: =O133*$S$90 -> 2621.672 | Q134: =Q133*$S$90 -> 5243.344
I135: Spring 2020 | K135: 1365.891112 | M135: 2731.782224 | O135: 2731.782224 | Q135: 5463.564448
I136: Spring 2021 | K136: 1423.258539 | M136: 2846.517077 | O136: 2846.517077 | Q136: 5693.034155
I137: Spring 2022 | K137: 1483.035397 | M137: 2966.070795 | O137: 2966.070795 | Q137: 5932.141589
I138: Spring 2023 | K138: 1545.322884 | M138: 3090.645768 | O138: 3090.645768 | Q138: 6181.291536
I139: Spring 2024 | K139: 1610.226445 | M139: 3220.45289 | O139: 3220.45289 | Q139: 6440.905781
K140: 0 | O140: 0
I141: Summer 2017 | K141: =Q141/4 -> 700 | M141: =Q141/2 -> 1400 | O141: =Q141/2 -> 1400 | Q141: 2800
I142: Summer 2018 | K142: =K141*$S$90 -> 729.4 | M142: =M141*$S$90 -> 1458.8 | O142: =O141*$S$90 -> 1458.8 | Q142: =Q141*$S$90 -> 2917.6
I143: Summer 2019 | K143: =K142*$S$90 -> 760.0348 | M143: =M142*$S$90 -> 1520.0696 | O143: =O142*$S$90 -> 1520.0696 | Q143: =Q142*$S$90 -> 3040.1392
I144: Summer 2020 | K144: 791.9562616 | M144: 1583.912523 | O144: 1583.912523 | Q144: 3167.825046
I145: Summer 2021 | K145: 825.2184246 | M145: 1650.436849 | O145: 1650.436849 | Q145: 3300.873698
I146: Summer 2022 | K146: 859.8775984 | M146: 1719.755197 | O146: 1719.755197 | Q146: 3439.510394
I147: Summer 2023 | K147: 895.9924576 | M147: 1791.984915 | O147: 1791.984915 | Q147: 3583.96983
I148: Summer 2024 | K148: 933.6241408 | M148: 1867.248282 | O148: 1867.248282 | Q148: 3734.496563
I150: Business & STB
K151: Masters - Min | M151: Masters-Max | O151: PhD - Min | Q151: PhD - Max
I153: Fall 2017 | K153: =Q153/4 -> 1324.5 | M153: =Q153/2 -> 2649 | O153: =Q153/2 -> 2649 | Q153: 5298
I154: Fall 2018 | K154: =K153*$S$90 -> 1380.129 | M154: =M153*$S$90 -> 2760.258 | O154: =O153*$S$90 -> 2760.258 | Q154: =Q153*$S$90 -> 5520.516
I155: Fall 2019 | K155: =K154*$S$90 -> 1438.094418 | M155: =M154*$S$90 -> 2876.188836 | O155: =O154*$S$90 -> 2876.188836 | Q155: =Q154*$S$90 -> 5752.377672
I156: Fall 2020 | K156: 1498.494384 | M156: 2996.988767 | O156: 2996.988767 | Q156: 5993.977534
I157: Fall 2021 | K157: 1561.431148 | M157: 3122.862295 | O157: 3122.862295 | Q157: 6245.724591
I158: Fall 2022 | K158: 1627.011256 | M158: 3254.022512 | O158: 3254.022512 | Q158: 6508.045023
I159: Fall 2023 | K159: 1695.345729 | M159: 3390.691457 | O159: 3390.691457 | Q159: 6781.382914
I160: Fall 2024 | K160: 1766.550249 | M160: 3533.100498 | O160: 3533.100498 | Q160: 7066.200997
K161: 0 | O161: 0
I162: Spring 2017 | K162: =Q162/4 -> 1286 | M162: =Q162/2 -> 2572 | O162: =Q162/2 -> 2572 | Q162: 5144
I163: Spring 2018 | K163: =Q163/4 -> 1324.5 | M163: =O163 -> 2649 | O163: =Q163/2 -> 2649 | Q163: 5298
I164: Spring 2019 | K164: =K163*$S$90 -> 1380.129 | M164: =M163*$S$90 -> 2760.258 | O164: =O163*$S$90 -> 2760.258 | Q164: =Q163*$S$90 -> 5520.516
I165: Spring 2020 | K165: 1438.094418 | M165: 2876.188836 | O165: 2876.188836 | Q165: 5752.377672
I166: Spring 2021 | K166: 1498.494384 | M166: 2996.988767 | O166: 2996.988767 | Q166: 5993.977534
I167: Spring 2022 | K167: 1561.431148 | M167: 3122.862295 | O167: 3122.862295 | Q167: 6245.724591
I168: Spring 2023 | K168: 1627.011256 | M168: 3254.022512 | O168: 3254.022512 | Q168: 6508.045023
I169: Spring 2024 | K169: 1695.345729 | M169: 3390.691457 | O169: 3390.691457 | Q169: 6781.382914
K170: 0 | O170: 0
I171: Summer 2017 | K171: =Q171/4 -> 736.25 | M171: =Q171/2 -> 1472.5 | O171: =Q171/2 -> 1472.5 | Q171: 2945
I172: Summer 2018 | K172: =K171*$S$90 -> 767.1725 | M172: =M171*$S$90 -> 1534.345 | O172: =O171*$S$90 -> 1534.345 | Q172: =Q171*$S$90 -> 3068.69
I173: Summer 2019 | K173: =K172*$S$90 -> 799.393745 | M173: =M172*$S$90 -> 1598.78749 | O173: =O172*$S$90 -> 1598.78749 | Q173: =Q172*$S$90 -> 3197.57498
I174: Summer 2020 | K174: 832.9682823 | M174: 1665.936565 | O174: 1665.936565 | Q174: 3331.873129
I175: Summer 2021 | K175: 867.9529501 | M175: 1735.9059 | O175: 1735.9059 | Q175: 3471.811801
I176: Summer 2022 | K176: 904.4069741 | M176: 1808.813948 | O176: 1808.813948 | Q176: 3617.627896
I177: Summer 2023 | K177: 942.392067 | M177: 1884.784134 | O177: 1884.784134 | Q177: 3769.568268
I178: Summer 2024 | K178: 981.9725338 | M178: 1963.945068 | O178: 1963.945068 | Q178: 3927.890135
I180: Specific Graduate Departments
K181: Masters - Min | M181: Masters-Max | O181: PhD - Min | Q181: PhD - Max
I183: Fall 2017 | K183: =Q183/4 -> 1137.75 | M183: =Q183/2 -> 2275.5 | O183: =Q183/2 -> 2275.5 | Q183: 4551
I184: Fall 2018 | K184: =K183*$S$90 -> 1185.5355 | M184: =M183*$S$90 -> 2371.071 | O184: =O183*$S$90 -> 2371.071 | Q184: =Q183*$S$90 -> 4742.142
I185: Fall 2019 | K185: =K184*$S$90 -> 1235.327991 | M185: =M184*$S$90 -> 2470.655982 | O185: =O184*$S$90 -> 2470.655982 | Q185: =Q184*$S$90 -> 4941.311964
I186: Fall 2020 | K186: 1287.211767 | M186: 2574.423533 | O186: 2574.423533 | Q186: 5148.847066
I187: Fall 2021 | K187: 1341.274661 | M187: 2682.549322 | O187: 2682.549322 | Q187: 5365.098643
I188: Fall 2022 | K188: 1397.608197 | M188: 2795.216393 | O188: 2795.216393 | Q188: 5590.432786
I189: Fall 2023 | K189: 1456.307741 | M189: 2912.615482 | O189: 2912.615482 | Q189: 5825.230963
I190: Fall 2024 | K190: 1517.472666 | M190: 3034.945332 | O190: 3034.945332 | Q190: 6069.890664
K191: 0 | O191: 0
I192: Spring 2017 | K192: =Q192/4 -> 1059.25 | M192: =Q192/2 -> 2118.5 | O192: =Q192/2 -> 2118.5 | Q192: 4237
I193: Spring 2018 | K193: =Q193/4 -> 1137.75 | M193: =O193 -> 2275.5 | O193: =Q193/2 -> 2275.5 | Q193: 4551
I194: Spring 2019 | K194: =K193*$S$90 -> 1185.5355 | M194: =M193*$S$90 -> 2371.071 | O194: =O193*$S$90 -> 2371.071 | Q194: =Q193*$S$90 -> 4742.142
I195: Spring 2020 | K195: 1235.327991 | M195: 2470.655982 | O195: 2470.655982 | Q195: 4941.311964
I196: Spring 2021 | K196: 1287.211767 | M196: 2574.423533 | O196: 2574.423533 | Q196: 5148.847066
I197: Spring 2022 | K197: 1341.274661 | M197: 2682.549322 | O197: 2682.549322 | Q197: 5365.098643
I198: Spring 2023 | K198: 1397.608197 | M198: 2795.216393 | O198: 2795.216393 | Q198: 5590.432786
I199: Spring 2024 | K199: 1456.307741 | M199: 2912.615482 | O199: 2912.615482 | Q199: 5825.230963
K200: 0 | O200: 0
I201: Summer 2017 | K201: =Q201/4 -> 632.5 | M201: =Q201/2 -> 1265 | O201: =Q201/2 -> 1265 | Q201: 2530
I202: Summer 2018 | K202: =K201*$S$90 -> 659.065 | M202: =M201*$S$90 -> 1318.13 | O202: =O201*$S$90 -> 1318.13 | Q202: =Q201*$S$90 -> 2636.26
I203: Summer 2019 | K203: =K202*$S$90 -> 686.74573 | M203: =M202*$S$90 -> 1373.49146 | O203: =O202*$S$90 -> 1373.49146 | Q203: =Q202*$S$90 -> 2746.98292
I204: Summer 2020 | K204: 715.5890507 | M204: 1431.178101 | O204: 1431.178101 | Q204: 2862.356203
I205: Summer 2021 | K205: 745.6437908 | M205: 1491.287582 | O205: 1491.287582 | Q205: 2982.575163
I206: Summer 2022 | K206: 776.96083 | M206: 1553.92166 | O206: 1553.92166 | Q206: 3107.84332
I207: Summer 2023 | K207: 809.5931849 | M207: 1619.18637 | O207: 1619.18637 | Q207: 3238.372739
I208: Summer 2024 | K208: 843.5960986 | M208: 1687.192197 | O208: 1687.192197 | Q208: 3374.384394

Sheet FOR SPA USE ONLY
A1: Sponsor: | B1: ='Internal budget'!D3 -> XYZ Company
A2: Title: | B2: ='Internal budget'!D4 -> The best proposal ever
A3: PI Name: | B3: ='Internal budget'!D5 -> Professor Smith
A4: Period of Performance: | B4: ='Internal budget'!D6 -> 1/1/2017 to 12/31/2017
A5: Account Number:
A7: Budget Categories | B7: Budget Code | C7: Amount
A8: Salary/Hourly | B8: 0108 | C8: =ROUND('Internal budget'!M31,0) -> 0
A9: Payroll Benefits | B9: 0130 | C9: =ROUND('Internal budget'!M33,0) -> 0
A10: Equipment | B10: 0710 | C10: =ROUND('Internal budget'!M52,0) -> 0
A11: Travel Domestic | B11: 0215 | C11: =ROUND('Internal budget'!M57,0) -> 0
A12: Travel Foreign | B12: 0216 | C12: =ROUND('Internal budget'!M58,0) -> 0
A13: Student Tuition | B13: 0610 | C13: =ROUND('Internal budget'!M69+'Internal budget'!M703+'Internal budget'!M71+'Internal budget'!M72,0) -> 0
A14: Supplies | B14: 0410 | C14: =ROUND('Internal budget'!M61,0) -> 0
A15: Subcontracts
A16: Subject to IDC | B16: 0396 | C16: =ROUND('Internal budget'!M65+'Internal budget'!M67,0) -> 0
A17: Not Subejct to IDC | B17: 0376 | C17: =ROUND('Internal budget'!M66+'Internal budget'!M68,0) -> 0
A18: Other Direct Costs
A19: Telecom Charges | B19: 0340 | C19: 0
A20: Computer Usage | B20: 0353 | C20: =ROUND('Internal budget'!M63,0) -> 0
A21: Printing/Copying | B21: 0373 | C21: =ROUND('Internal budget'!M62,0) -> 0
A22: Services/Honoraria | B22: 0302 | C22: =ROUND('Internal budget'!M64,0) -> 0
A23: Postage | B23: 0379 | C23: 0
A24: Other | B24: 0630 | C24: =ROUND(SUM('Internal budget'!M73:M75),0) -> 0
A25: Total Direct Costs | C25: ='Internal budget'!M77 -> 0
A26: Indirect Costs | B26: 0642 | C26: ='Internal budget'!M82 -> 0
A27: Total Costs | C27: =SUM(C25:C26) -> 0

Sheet INDUSTRY BUDGET USE THIS
A1: ='Internal budget'!A1 -> Project Budget Worksheet - Iowa State University of Science and Technology
A2: Industry Budget
A3: ='Internal budget'!A3 -> Program Sponsor | B3: ='Internal budget'!D3 -> XYZ Company
A4: ='Internal budget'!A4 -> Title | B4: ='Internal budget'!D4 -> The best proposal ever
A5: ='Internal budget'!A5 -> PI | B5: ='Internal budget'!D5 -> Professor Smith
A6: ='Internal budget'!A6 -> Period of Performance | B6: ='Internal budget'!D6 -> 1/1/2017 to 12/31/2017
B8: Total
A9: Personnel | B9: =+'External budget '!M33+'External budget '!M50+'External budget '!M51+'External budget '!M52+'External budget '!M53 -> 0
A10: Equipment | B10: =+'External budget '!M35 -> 0
A11: Travel | B11: =+'External budget '!M40+'External budget '!M41 -> 0
A12: Materials and Supplies | B12: =+'External budget '!M44 -> 0
A13: Subcontracts | B13: =+'External budget '!M48+'External budget '!M49 -> 0
A14: Other | B14: =+'External budget '!M45+'External budget '!M46+'External budget '!M47+'External budget '!M56+'External budget '!M55+'External budget '!M54 -> 0
A15: Project Total | B15: =SUM(B9:B14) -> 0
